bitfinex/quotes_SOLUSD_20241009
["timestamp","ask_amount","ask_price","bid_price","bid_amount"]
[1728491216328,2.0,141.33,141.32,17.6898]
[1728491216528,2.0,141.33,141.31,7.0762]
[1728491217322,2.0,141.33,141.3,7.0769]
[1728491217527,2.0,141.31,141.3,7.0769]
[1728491217746,2.0,141.31,141.29,24.771]
[1728491218125,2.0,141.31,141.27,21.08905142]
[1728491218323,6.4393,141.36,141.25,27.36645142]
[1728491218324,2.0,141.28,141.25,27.36645142]
[1728491218529,2.0,141.28,141.23,38.78965142]
[1728491218743,2.0,141.28,141.25,7.0793]
[1728491218955,2.0,141.28,141.26,7.079]
[1728491219246,2.0,141.28,141.25,17.6984]
[1728491219446,2.0,141.28,141.27,7.0786]
[1728491219645,2.0,141.28,141.26,7.079]
[1728491220250,2.0,141.26,141.25,17.6984]
[1728491220450,2.0,141.26,141.22,21.08905142]
[1728491220758,2.0,141.26,141.22,38.79105142]
[1728491220930,2.0,141.26,141.24,28.16905142]
[1728491221127,2.0,141.26,141.25,1.41557574]
[1728491221433,2.0,141.26,141.24,17.6998]
[1728491221775,2.0,141.26,141.22,21.08905142]
[1728491222052,15.7684,141.33,141.25,7.0796]
[1728491222053,2.0,141.28,141.25,7.0796]
[1728491222226,2.0,141.28,141.24,21.08905142]
[1728491222562,2.0,141.26,141.24,21.08905142]
[1728491222940,2.0,141.26,141.25,1.41561335]
[1728491223135,2.0,141.28,141.25,1.41561335]
[1728491223349,2.0,141.28,141.26,21.08905142]
[1728491223750,2.0,141.34,141.27,21.08905142]
[1728491224050,6.1761,141.4,141.34,7.075]
[1728491224257,7.0732,141.38,141.36,21.08905142]
[1728491224553,7.0732,141.38,141.37,1.4145412]
[1728491224929,7.0726,141.39,141.37,1.4145412]
[1728491225578,21.6443,141.43,141.38,21.08905142]
[1728491225867,7.0716,141.41,141.39,1.41427857]
[1728491226250,7.0721,141.4,141.38,21.08905142]
[1728491226451,7.0731,141.39,141.35,17.686]
[1728491226771,7.0731,141.39,141.36,1.41440773]
[1728491228932,39.3216,141.43,141.36,1.41440773]
[1728491228933,7.0721,141.4,141.36,8.48830773]
[1728491229150,7.072,141.41,141.36,8.48830773]
[1728491229547,7.0721,141.4,141.35,17.686]
[1728491229762,7.0721,141.4,141.36,8.48829021]
[1728491230133,7.0721,141.4,141.35,24.7605]
[1728491230339,7.0733,141.38,141.34,7.075]
[1728491230642,7.0727,141.39,141.34,40.74429106]
[1728491230834,7.0727,141.39,141.35,8.48900821]
[1728491231039,7.0725,141.4,141.35,8.48900821]
[1728491231537,7.0727,141.39,141.35,8.48900821]
[1728491233647,17.6795,141.41,141.34,33.66929106]
[1728491233848,7.074,141.37,141.34,33.66929106]
[1728491234444,7.074,141.37,141.35,1.41459883]
[1728491234765,7.0733,141.38,141.35,1.41459883]
[1728491235965,7.0733,141.38,141.34,40.74419106]
[1728491236167,7.0733,141.38,141.35,1.41453208]
[1728491236369,7.0736,141.37,141.35,1.41453208]
[1728491236568,0.12549,141.42,141.31,33.66929106]
[1728491236865,7.0749,141.35,141.31,33.66929106]
[1728491237164,7.0742,141.36,141.32,8.49088057]
[1728491239840,17.6824,141.39,141.32,1.41478057]
[1728491240043,7.0746,141.35,141.32,1.41478057]
[1728491240448,37.6786,141.42,141.33,33.66929106]
[1728491240652,37.6786,141.42,141.34,8.4891085]
[1728491240653,7.0732,141.38,141.34,8.4891085]
[1728491243075,7.0739,141.37,141.34,1.4145085]
[1728491243980,17.6786,141.42,141.34,1.4145085]
[1728491244151,7.0729,141.39,141.35,7.0745]
[1728491244342,17.6786,141.42,141.36,1.41444552]
[1728491244542,7.0731,141.38,141.34,24.7624]
[1728491244744,20.0,141.42,141.31,33.66929106]
[1728491244945,17.6805,141.4,141.33,7.0755]
[1728491245168,7.0739,141.37,141.33,7.0755]
[1728491245760,17.6805,141.4,141.32,23.776884]
[1728491246073,7.0741,141.36,141.32,30.852784]
[1728491247159,7.0741,141.36,141.33,7.0756]
[1728491247965,7.0737,141.37,141.34,1.41463155]
[1728491248391,7.0733,141.38,141.34,8.48963155]
[1728491248673,7.0733,141.38,141.35,7.0745]
[1728491248873,7.0727,141.39,141.36,8.48846661]
[1728491249082,7.0727,141.39,141.36,1.41446661]
[1728491249278,7.0727,141.39,141.35,45.81561564]
[1728491249480,7.0727,141.39,141.36,1.41443138]
[1728491249789,7.0727,141.39,141.35,45.81561564]
[1728491249961,39.322,141.43,141.35,45.81561564]
[1728491250154,7.0731,141.38,141.35,45.81561564]
[1728491250578,7.0728,141.39,141.35,45.81561564]
[1728491250790,39.322,141.43,141.36,1.41445967]
[1728491250962,7.0722,141.4,141.36,1.41445967]
[1728491251157,7.0719,141.41,141.37,7.0732]
[1728491251358,7.2533467,141.45,141.39,21.05461564]
[1728491251577,29.3985,141.47,141.42,7.0706]
[1728491251839,7.0683,141.48,141.43,1.41375254]
[1728491251954,22.3297,141.51,141.43,45.80121564]
[1728491252151,7.0688,141.47,141.44,1.41367064]
[1728491252374,7.0684,141.48,141.44,1.41367064]
[1728491252580,7.0686,141.47,141.43,45.80121564]
[1728491252783,7.0697,141.45,141.41,21.05461564]
[1728491252957,7.0697,141.45,141.4,17.6794]
[1728491252958,7.0697,141.45,141.4,24.7511]
[1728491253159,7.0701,141.44,141.4,24.7511]
[1728491253777,17.6708,141.48,141.39,21.05461564]
[1728491254077,22.3297,141.51,141.41,21.05461564]
[1728491254078,20.12549,141.5,141.41,21.05461564]
[1728491254261,39.997,141.51,141.43,28.12511564]
[1728491254262,7.0682,141.48,141.43,28.12511564]
[1728491254586,39.997,141.51,141.43,28.12511564]
[1728491254587,7.0677,141.49,141.45,7.0695]
[1728491254885,22.3297,141.51,141.46,1.41354213]
[1728491255071,7.0681,141.48,141.44,7.0701]
[1728491257287,7.0676,141.49,141.45,8.48298063]
[1728491257693,7.0675,141.5,141.46,7.069]
[1728491257998,7.0675,141.5,141.47,1.41341104]
[1728491258200,17.6626,141.55,141.47,19.08461104]
[1728491258373,7.0672,141.5,141.46,7.0686]
[1728491259781,7.0667,141.51,141.46,7.0686]
[1728491260171,7.0667,141.51,141.47,8.48181781]
[1728491260373,7.0666,141.51,141.47,24.74]
[1728491261795,7.0666,141.51,141.48,1.41327345]
[1728491261991,7.0662,141.52,141.48,7.0681]
[1728491263194,7.065,141.55,141.51,7.0666]
[1728491263396,17.6587,141.58,141.49,24.7362]
[1728491263777,17.6608,141.56,141.46,17.672]
[1728491263982,22.55166151,141.59,141.46,24.7409]
[1728491264176,22.55166151,141.59,141.47,1.41325381]
[1728491264382,22.55166151,141.59,141.48,7.0677]
[1728491264383,7.0662,141.52,141.48,7.0677]
[1728491264765,0.25098,141.56,141.47,7.0684]
[1728491264977,7.0662,141.52,141.47,7.0684]
[1728491265378,7.0666,141.51,141.47,7.0684]
[1728491266279,7.0666,141.51,141.46,17.672]
[1728491266280,40.20946151,141.59,141.5,17.6675]
[1728491266481,7.0642,141.56,141.52,7.0661]
[1728491266824,15.2993,141.59,141.53,1.41274922]
[1728491266991,7.064,141.57,141.53,1.41274922]
[1728491267371,7.064,141.57,141.53,8.47824922]
[1728491268392,7.0632,141.58,141.54,7.065]
[1728491268700,7.0636,141.57,141.53,7.0653]
[1728491269077,7.0636,141.57,141.54,1.41265019]
[1728491269289,7.0631,141.58,141.54,8.47735019]
[1728491269874,24.90684322,141.62,141.54,1.41265019]
[1728491270212,7.0627,141.59,141.55,8.4766662]
[1728491270785,24.90684322,141.62,141.55,1.4124662]
[1728491270991,7.0631,141.58,141.55,1.4124662]
[1728491273294,7.0629,141.59,141.55,7.0646]
[1728491273489,7.0633,141.58,141.54,24.7272]
[1728491273684,7.0637,141.57,141.53,7.0655]
[1728491273885,17.6557,141.6,141.51,17.6654]
[1728491274091,7.0654,141.54,141.5,7.067]
[1728491274391,0.12549,141.57,141.48,73.1407897]
[1728491274598,17.6605,141.56,141.48,17.6692]
[1728491274892,7.0658,141.53,141.49,7.0673]
[1728491275086,17.6605,141.56,141.48,17.6692]
[1728491275284,7.0661,141.52,141.48,24.7368]
[1728491277911,17.6605,141.56,141.48,17.6692]
[1728491278317,17.6631,141.54,141.48,23.776884]
[1728491278702,7.0669,141.51,141.48,23.776884]
[1728491280399,7.0669,141.51,141.48,30.844984]
[1728491281210,7.0671,141.5,141.47,17.6714]
[1728491281406,7.0679,141.49,141.46,23.776884]
[1728491281857,22.4798,141.59,141.51,17.6665]
[1728491281984,15.915,141.59,141.53,21.01349482]
[1728491282187,22.8419,141.63,141.55,28.07809482]
[1728491282401,7.0625,141.6,141.56,1.41248084]
[1728491282818,7.0625,141.6,141.56,8.47658084]
[1728491283108,7.0631,141.58,141.57,1.41250891]
[1728491283315,7.0631,141.58,141.55,1.41255454]
[1728491283683,7.0628,141.59,141.55,1.41255454]
[1728491283889,7.0628,141.59,141.55,8.47705454]
[1728491284089,7.0628,141.59,141.56,1.41253145]
[1728491285619,20.25098,141.61,141.51,40.3887]
[1728491285821,7.0637,141.57,141.53,7.0654]
[1728491286724,27.25131771,141.61,141.54,7.0646]
[1728491286896,7.0632,141.58,141.54,7.0646]
[1728491287519,7.0641,141.56,141.53,17.6632]
[1728491288227,7.0641,141.56,141.51,16.4083]
[1728491288228,27.25131771,141.61,141.49,33.58032975]
[1728491288525,0.25098,141.58,141.5,17.6669]
[1728491288824,7.0651,141.54,141.5,24.7337]
[1728491289624,0.25098,141.58,141.46,68.92392975]
[1728491289625,6.42419,141.56,141.46,68.92392975]
[1728491289797,6.42419,141.56,141.47,17.6706]
[1728491290005,6.2987,141.56,141.49,17.6681]
[1728491290204,7.0649,141.55,141.51,7.0666]
[1728491290427,6.2987,141.56,141.49,17.6681]
[1728491290604,7.0651,141.54,141.5,7.0669]
[1728491291093,6.2987,141.56,141.49,17.6681]
[1728491291297,7.0664,141.52,141.48,7.0679]
[1728491292219,0.25098,141.55,141.46,17.672]
[1728491292406,7.0666,141.51,141.47,7.0684]
[1728491292997,7.0671,141.5,141.46,24.741]
[1728491293200,17.91288,141.55,141.46,17.672]
[1728491293426,17.91288,141.55,141.48,17.6699]
[1728491293624,7.0661,141.52,141.48,24.7379]
[1728491293813,7.0658,141.53,141.49,7.0674]
[1728491294012,7.0662,141.52,141.48,24.7376]
[1728491296124,7.0656,141.54,141.5,7.067]
[1728491296311,23.9592,141.56,141.5,7.067]
[1728491296312,7.0647,141.55,141.51,7.0663]
[1728491296626,7.0647,141.55,141.51,1.41304845]
[1728491296864,6.2987,141.56,141.51,1.41304845]
[1728491297007,7.0651,141.54,141.51,1.41304845]
[1728491297425,7.0647,141.55,141.51,8.47964845]
[1728491297833,16.3518,141.57,141.5,24.7345]
[1728491297834,7.0651,141.54,141.5,24.7345]
[1728491299236,7.0648,141.55,141.51,7.0666]
[1728491300331,7.0648,141.55,141.5,17.6676]
[1728491300332,7.0651,141.54,141.5,24.7345]
[1728491301236,0.25098,141.56,141.51,1.41305271]
[1728491301415,7.0659,141.53,141.49,7.0675]
[1728491301730,7.0661,141.52,141.5,1.41316196]
[1728491302114,7.0661,141.52,141.48,7.0679]
[1728491302311,7.067,141.51,141.48,23.776884]
[1728491302510,7.067,141.51,141.47,24.739]
[1728491304914,7.067,141.51,141.48,1.4134038]
[1728491305508,0.25098,141.54,141.48,1.4134038]
[1728491305838,16.3518,141.57,141.49,21.01452314]
[1728491306138,7.0643,141.56,141.52,7.066]
[1728491306315,13.30786667,141.59,141.53,1.41289926]
[1728491306511,0.843945,141.64,141.55,28.07882314]
[1728491306512,16.0288,141.6,141.55,28.07882314]
[1728491306817,22.0307,141.63,141.56,8.4766747]
[1728491307033,7.0615,141.62,141.57,7.0635]
[1728491307234,7.0617,141.61,141.58,1.41244003]
[1728491307933,7.0617,141.61,141.57,7.0635]
[1728491308323,7.0612,141.62,141.58,7.0631]
[1728491309223,7.0619,141.61,141.56,30.840884]
[1728491309543,7.0623,141.6,141.56,30.840884]
[1728491309918,7.0617,141.61,141.56,30.840884]
[1728491310226,7.0612,141.62,141.58,7.063]
[1728491310434,7.0612,141.62,141.59,1.41230875]
[1728491312734,0.843945,141.64,141.62,7.0608]
[1728491312920,0.843945,141.64,141.62,1.41198787]
[1728491313545,7.904145,141.64,141.61,17.6538]
[1728491313839,7.0613,141.62,141.59,23.776884]
[1728491314046,0.843945,141.64,141.58,17.6571]
[1728491314224,7.0611,141.63,141.59,1.41222954]
[1728491315536,0.843945,141.64,141.59,8.47482954]
[1728491315733,7.904345,141.64,141.59,8.47482954]
[1728491315922,7.904345,141.64,141.6,7.062]
[1728491316133,7.904345,141.64,141.61,1.4120198]
[1728491316738,7.904345,141.64,141.58,17.6571]
[1728491316739,7.0606,141.63,141.59,7.0625]
[1728491317129,7.0606,141.63,141.6,1.4120652]
[1728491317833,7.0606,141.63,141.59,7.0625]
[1728491318226,7.0606,141.63,141.6,1.4120671]
[1728491318644,7.0606,141.63,141.59,7.0625]
[1728491319140,7.0606,141.63,141.6,1.41206351]
[1728491319922,0.843945,141.64,141.61,23.776884]
[1728491320118,0.843945,141.64,141.62,1.41188022]
[1728491322443,0.843945,141.64,141.63,7.0606]
[1728491323149,0.843945,141.64,141.62,26.12548022]
[1728491323527,0.843945,141.64,141.63,30.837484]
[1728491325159,0.843945,141.64,141.63,23.776884]
[1728491325333,0.843945,141.64,141.62,23.776884]
[1728491325528,0.843945,141.64,141.63,23.776884]
[1728491326058,0.843945,141.64,141.62,23.776884]
[1728491326351,0.843945,141.64,141.62,30.837984]
[1728491327332,0.843945,141.64,141.58,24.7196]
[1728491327333,7.0612,141.62,141.58,24.7196]
[1728491327746,7.0608,141.63,141.59,7.0626]
[1728491328050,0.843945,141.64,141.61,7.0615]
[1728491328230,0.843945,141.64,141.6,17.655]
[1728491328425,7.0621,141.6,141.56,7.064]
[1728491328651,7.0626,141.59,141.55,7.0644]
[1728491330557,7.0624,141.6,141.55,7.0642]
[1728491331141,7.0624,141.6,141.56,1.41241472]
[1728491331337,17.332645,141.64,141.53,77.9573736]
[1728491331558,7.0616,141.61,141.57,7.0632]
[1728491332262,7.0616,141.61,141.58,23.776884]
[1728491334258,17.332645,141.64,141.58,23.776884]
[1728491334437,7.0611,141.62,141.58,48.496884]
[1728491335352,7.0616,141.61,141.58,41.433984]
[1728491335736,7.0613,141.62,141.58,48.496984]
[1728491336750,7.0609,141.63,141.6,23.776884]
[1728491337455,7.0612,141.62,141.58,24.72]
[1728491337652,7.0612,141.62,141.59,23.776884]
[1728491337842,7.0617,141.61,141.58,17.6571]
[1728491338363,0.843945,141.64,141.59,23.776884]
[1728491338540,0.843945,141.64,141.63,7.0606]
[1728491339446,0.843945,141.64,141.63,30.837484]
[1728491339966,0.843945,141.64,141.63,51.8256576]
[1728491340659,0.843945,141.64,141.63,23.776884]
[1728491340838,0.843945,141.64,141.62,24.7134]
[1728491341657,0.843945,141.64,141.61,7.0614]
[1728491341961,0.843945,141.64,141.58,17.6575]
[1728491342160,0.843945,141.64,141.59,1.41213944]
[1728491342369,7.904445,141.64,141.59,8.47453944]
[1728491342665,7.0607,141.63,141.59,7.0624]
[1728491342959,0.843945,141.64,141.6,19.06676821]
[1728491343363,7.904445,141.64,141.6,26.12866821]
[1728491343663,7.904445,141.64,141.6,24.7166]
[1728491344165,0.843945,141.64,141.6,17.6547]
[1728491344340,7.0606,141.63,141.6,17.6547]
[1728491344544,7.0606,141.63,141.6,23.776884]
[1728491344757,0.843945,141.64,141.58,23.776884]
[1728491344951,0.843945,141.64,141.56,15.5697]
[1728491345138,7.0624,141.6,141.56,7.064]
[1728491346749,7.0624,141.6,141.57,23.776884]
[1728491348154,7.0627,141.59,141.55,30.841384]
[1728491348349,7.0622,141.6,141.56,7.0641]
[1728491350253,7.0648,141.55,141.51,17.6658]
[1728491350453,7.0658,141.53,141.49,7.0674]
[1728491350765,7.0665,141.52,141.48,24.7376]
[1728491350971,0.25098,141.56,141.46,22.2818]
[1728491350972,17.91158,141.56,141.46,22.2818]
[1728491351271,7.0674,141.5,141.46,22.2818]
[1728491351452,0.25098,141.53,141.43,20.9881736]
[1728491351659,0.25098,141.53,141.42,39.9595]
[1728491351660,17.6661,141.52,141.42,39.9595]
[1728491352049,7.068,141.49,141.44,7.0697]
[1728491352246,7.068,141.49,141.45,8.48303522]
[1728491353072,0.25098,141.54,141.46,7.069]
[1728491353268,0.25098,141.54,141.47,1.41335553]
[1728491353471,7.0662,141.52,141.47,8.48165553]
[1728491353845,0.25098,141.54,141.47,8.48165553]
[1728491354045,0.25098,141.54,141.46,24.7409]
[1728491354247,7.0685,141.48,141.43,17.6762]
[1728491354469,7.0686,141.47,141.43,17.6762]
[1728491354769,7.0692,141.46,141.42,7.0711]
[1728491355177,7.0687,141.47,141.42,7.0711]
[1728491355346,7.0687,141.47,141.43,1.41379659]
[1728491355663,17.6673,141.51,141.43,8.48429659]
[1728491355858,0.12549,141.51,141.44,7.07]
[1728491356058,7.0677,141.49,141.45,1.41358919]
[1728491356952,7.0677,141.49,141.45,8.48298919]
[1728491357157,7.0677,141.49,141.45,7.0694]
[1728491357671,7.0677,141.49,141.45,23.776884]
[1728491358258,21.155,141.52,141.45,30.846284]
[1728491359571,7.0678,141.49,141.45,30.846284]
[1728491359774,21.155,141.52,141.46,1.41351894]
[1728491359946,15.0004,141.52,141.46,17.6722]
[1728491360151,7.0671,141.5,141.47,1.41344562]
[1728491360470,7.0667,141.51,141.47,1.41344562]
[1728491361350,15.0004,141.52,141.46,24.7412]
[1728491361669,7.0673,141.5,141.46,24.7412]
[1728491361853,7.0655,141.54,141.49,7.0676]
[1728491362051,7.0655,141.54,141.5,1.41318234]
[1728491362653,7.0656,141.53,141.5,1.41318234]
[1728491363053,7.0656,141.53,141.48,24.7378]
[1728491363273,15.2329,141.55,141.48,17.6699]
[1728491363671,7.0671,141.5,141.47,23.776884]
[1728491365084,7.0671,141.5,141.46,7.0689]
[1728491365877,7.0671,141.5,141.46,23.776884]
[1728491366556,7.0671,141.5,141.46,30.845984]
[1728491367085,7.0667,141.51,141.47,8.48203899]
[1728491367265,17.6631,141.54,141.47,1.41343899]
[1728491367473,7.0663,141.52,141.48,7.068]
[1728491367777,7.0663,141.52,141.49,1.41331884]
[1728491368575,7.0666,141.51,141.47,24.7395]
[1728491368771,7.0666,141.51,141.47,17.671]
[1728491371684,0.25098,141.53,141.46,23.776884]
[1728491371915,7.069,141.47,141.43,7.0704]
[1728491372185,17.668,141.5,141.41,32.9363]
[1728491372381,17.668,141.5,141.42,7.071]
[1728491372382,7.0692,141.46,141.42,7.071]
[1728491372573,7.0699,141.45,141.41,40.0078]
[1728491372967,17.92148,141.48,141.38,67.69659305]
[1728491373384,7.0709,141.43,141.39,7.0723]
[1728491373686,7.0712,141.42,141.38,41.1436]
[1728491374558,17.6732,141.46,141.38,34.0706]
[1728491374969,7.0712,141.42,141.38,41.1433]
[1728491375683,7.0712,141.42,141.39,23.776884]
[1728491375879,22.1614,141.41,141.32,17.6899]
[1728491376196,7.0741,141.36,141.32,24.7659]
[1728491376485,7.0747,141.35,141.3,7.077]
[1728491376670,7.0747,141.35,141.31,7.0766]
[1728491377381,7.0747,141.35,141.3,27.077]
[1728491378882,7.0741,141.36,141.31,8.49158615]
[1728491379273,7.0741,141.36,141.32,23.776884]
[1728491379474,7.0741,141.36,141.33,1.41486582]
[1728491379673,7.0737,141.37,141.32,30.852884]
[1728491379984,7.0741,141.36,141.32,30.852884]
[1728491380181,7.0741,141.36,141.32,23.776884]
[1728491380676,7.0741,141.36,141.31,24.7674]
[1728491381065,0.25098,141.4,141.31,24.7674]
[1728491381270,7.0746,141.35,141.31,24.7674]
[1728491382788,7.0746,141.35,141.28,33.62599305]
[1728491382789,7.0747,141.35,141.32,1.41496867]
[1728491383695,0.25098,141.33,141.26,17.6971]
[1728491383898,7.0777,141.29,141.26,17.6971]
[1728491384080,7.077,141.31,141.26,26.19174992]
[1728491384391,7.077,141.31,141.26,24.7762]
[1728491384596,7.0772,141.3,141.26,24.7762]
[1728491387488,7.0772,141.3,141.27,1.41554238]
[1728491387982,15.0748,141.37,141.3,17.6924]
[1728491388182,15.0748,141.37,141.32,7.0757]
[1728491388472,15.0748,141.37,141.3,35.0410579]
[1728491388473,15.0748,141.37,141.31,28.12959367]
[1728491388684,7.0747,141.35,141.31,28.12959367]
[1728491388876,7.0747,141.35,141.31,7.0765]
[1728491394506,7.0757,141.33,141.29,17.6932]
[1728491395095,7.0757,141.33,141.3,1.41527184]
[1728491395410,7.0754,141.34,141.3,8.49227184]
[1728491395586,7.0757,141.33,141.29,24.7706]
[1728491396382,7.0757,141.33,141.3,1.41523016]
[1728491397508,7.0752,141.34,141.3,8.49223016]
[1728491398204,7.0748,141.35,141.31,7.0764]
[1728491398413,7.0755,141.34,141.3,7.077]
[1728491398906,7.0756,141.33,141.29,24.7706]
[1728491399111,0.25098,141.36,141.29,17.6932]
[1728491399296,7.0752,141.34,141.3,8.492296]
[1728491399809,7.0747,141.35,141.31,7.0765]
[1728491400008,7.0747,141.35,141.3,1.415196]
[1728491400009,7.0747,141.35,141.3,7.0769]
[1728491400184,32.759,141.37,141.29,17.6932]
[1728491400185,15.0748,141.37,141.31,17.6912]
[1728491400382,13.80168832,141.38,141.32,23.776884]
[1728491400383,7.29378832,141.38,141.32,23.776884]
[1728491400687,7.0734,141.38,141.34,7.0749]
[1728491400893,7.0739,141.37,141.33,17.6888]
[1728491401088,15.9425,141.41,141.3,39.1524]
[1728491401302,35.3629,141.4,141.28,43.776884]
[1728491401507,7.0759,141.33,141.29,7.0772]
[1728491401948,17.6841,141.37,141.28,43.776884]
[1728491405121,7.0746,141.35,141.32,17.69]
[1728491406814,7.0746,141.35,141.31,7.0766]
[1728491407006,7.0755,141.34,141.3,30.853784]
[1728491407190,0.12549,141.39,141.28,7.078]
[1728491407191,7.0761,141.32,141.28,7.078]
[1728491407390,7.0769,141.31,141.27,7.0785]
[1728491407701,33.902,141.34,141.26,17.6966]
[1728491407703,0.25098,141.33,141.26,17.6966]
[1728491407907,7.0768,141.31,141.27,7.0785]
[1728491408207,7.32668,141.33,141.29,7.0772]
[1728491408402,0.25098,141.33,141.3,1.41525497]
[1728491408595,0.25098,141.33,141.28,17.695]
[1728491408913,0.25098,141.33,141.29,1.41521197]
[1728491409113,0.25098,141.33,141.31,7.0764]
[1728491409516,0.25098,141.33,141.3,24.7693]
[1728491410222,0.25098,141.33,141.27,17.6957]
[1728491410893,7.0766,141.31,141.27,24.774]
[1728491411093,7.0775,141.3,141.26,7.0788]
[1728491411705,7.0768,141.31,141.27,7.0786]
[1728491412427,7.0765,141.32,141.28,7.078]
[1728491414322,0.25098,141.33,141.26,17.6977]
[1728491414617,7.0769,141.31,141.27,7.0785]
[1728491415220,7.0775,141.3,141.26,17.6977]
[1728491415422,7.0775,141.3,141.26,24.7764]
[1728491415722,0.12549,141.33,141.26,17.6977]
[1728491415915,7.0767,141.31,141.27,7.0785]
[1728491416103,7.0772,141.3,141.26,24.7767]
[1728491416508,17.81469,141.33,141.24,21.07441188]
[1728491416709,7.078,141.29,141.25,7.0796]
[1728491417302,7.078,141.29,141.26,7.0791]
[1728491418417,7.0772,141.3,141.26,7.0791]
[1728491418815,0.12549,141.33,141.27,19.11204947]
[1728491419006,7.0762,141.32,141.28,7.0777]
[1728491420315,7.38368431,141.36,141.32,7.0761]
[1728491420519,7.0746,141.35,141.31,24.7678]
[1728491420720,7.0746,141.35,141.31,26.18294291]
[1728491421022,7.0746,141.35,141.31,24.7678]
[1728491422096,7.0751,141.34,141.31,17.6914]
[1728491422823,7.0748,141.35,141.31,24.768]
[1728491423519,7.32528,141.36,141.32,7.076]
[1728491423718,7.0746,141.35,141.31,24.7679]
[1728491424297,7.0751,141.34,141.31,24.7679]
[1728491424623,0.25098,141.36,141.28,24.7721]
[1728491424821,24.027864,141.36,141.26,7.079]
[1728491424997,7.0776,141.29,141.26,7.079]
[1728491425199,0.25098,141.32,141.26,7.079]
[1728491425411,7.0774,141.3,141.26,7.079]
[1728491427219,7.0776,141.29,141.25,24.7777]
[1728491429126,7.0776,141.29,141.26,7.0791]
[1728491429625,0.12549,141.32,141.26,1.41571043]
[1728491429809,7.0767,141.31,141.27,7.0783]
[1728491430006,7.0762,141.32,141.28,7.0778]
[1728491430209,7.0758,141.33,141.27,1.41551602]
[1728491430426,7.0784,141.28,141.24,7.0799]
[1728491430623,17.6904,141.32,141.24,1.41578026]
[1728491430809,7.0777,141.29,141.25,7.0792]
[1728491432010,7.0781,141.28,141.24,7.0799]
[1728491432226,16.2141,141.31,141.24,7.0799]
[1728491432420,16.2141,141.31,141.25,7.0795]
[1728491432421,7.0777,141.29,141.25,7.0795]
[1728491433423,16.2141,141.31,141.23,17.7012]
[1728491433732,7.0781,141.28,141.24,7.0798]
[1728491434232,7.0781,141.28,141.23,17.7012]
[1728491434432,0.12549,141.3,141.23,24.7815]
[1728491434730,7.0782,141.28,141.23,17.7012]
[1728491434910,7.0778,141.29,141.24,8.49585726]
[1728491435119,0.25098,141.3,141.26,7.0788]
[1728491435436,7.32818,141.3,141.26,7.0788]
[1728491435812,23.2909,141.31,141.27,7.0785]
[1728491436021,16.2141,141.31,141.28,7.0778]
[1728491436417,23.2908,141.31,141.27,24.7742]
[1728491436819,23.2908,141.31,141.27,17.6958]
[1728491437835,23.2908,141.31,141.27,24.7744]
[1728491438335,7.0757,141.33,141.29,7.0775]
[1728491439130,7.0761,141.32,141.28,7.078]
[1728491439344,23.2279,141.34,141.3,7.077]
[1728491439706,0.25098,141.33,141.29,17.6938]
[1728491440018,7.32658,141.33,141.29,24.7712]
[1728491440337,7.32658,141.33,141.3,7.077]
[1728491440338,0.25098,141.33,141.3,7.077]
[1728491440536,7.38244301,141.38,141.3,1.41536669]
[1728491440537,23.97844301,141.38,141.3,1.41536669]
[1728491440716,7.0741,141.36,141.32,7.0759]
[1728491441033,7.0737,141.37,141.33,7.0755]
[1728491441236,7.0737,141.37,141.32,7.0759]
[1728491441408,23.6692,141.38,141.33,17.6885]